Cogmind - Beta 14 @@@ ROGUE MODE // 2024.08.08 @ 08:40:03 Player: CatgirlLyra Result: Destroyed by Y-72 Warden with Quantum Rifle Performance ------------- Evolutions (9) 4500 Regions Visited (21) 4200 Robots Destroyed (388) 1940 Value Destroyed (18410) 18410 Prototype IDs (54) 1080 Alien Tech Used (3) 600 Bonus (15818) 15818 TOTAL SCORE: 46548 Bonus ------- High Alert Combat Kills 3533 Follower Combat Kills 3417 Network Hubs Disabled 200 Destroyed Z-Imprinter 1000 Built Enhanced Grunts 300 A7 Reached Mainframe 300 Met R17 at Cetus 500 Used Core Reset Matrix 3000 Met R17 at Research 2000 Met Sigix 2000 Friendly Fire -432 Cogmind --------- Core Integrity 0/1600 Matter 190/300 Energy 169/170 System Corruption 27% Temperature Cool (12) Movement Flying (34) Location -1/Access Parts ------- > --- POWER (3) -------- Light Antimatter Reactor > --- PROPULSION (6) --- Xenon Bombardment Thruster Xenon Bombardment Thruster Xenon Bombardment Thruster > --- UTILITY (13) ----- Experimental Hacking Suite Improved System Restoration Module > --- WEAPON (3) ------- (None) > --- INVENTORY (5) ---- Matter Compressor (250) Hacking Drone Bay (1/1) Enhanced Nova Cannon Rocket Array Improved Plasma Cutter Peak State ------------ > --- POWER ------------ Particle Reactor Quantum Reactor Quantum Reactor > --- PROPULSION ------- Biometal Medium Treads Biometal Medium Treads Biometal Medium Treads Biometal Medium Treads Armored Heavy Treads > --- UTILITY ---------- Advanced Cooling System Advanced Cooling System Huge Storage Unit Advanced Targeting Computer Core Analyzer Advanced Weapon Cycler Improved Heavy Armor Plating Phase Armor Graphene Brace Improved Remote Force Field Hacking Drone Bay > --- WEAPON ----------- Quantum Rifle Enhanced Quantum Rifle Enhanced Nova Cannon > --- INVENTORY -------- Particle Reactor Quantum Reactor Quantum Reactor Improved Heavy Treads Biometal Medium Treads Biometal Medium Treads Armored Heavy Treads Matter Compressor Layered Medium Armor Plating Improved Focal Shield Improved Shock Absorption System Phase Redirector Antimissile System Long-range Tractor Beam Long-range Tractor Beam Compact HERF Cannon Heavy Missile Launcher Rocket Array Rocket Array Advanced Remote Datajack Improved Plasma Cutter [Rating: 206] Favorites ----------- Power Quantum Reactor Engine Deuterium Engine Power Core Neutrino Core Reactor Quantum Reactor Propulsion Armored Treads Treads Armored Treads Leg Enhanced Biometal Leg Wheel Wheel Flight Unit Xenon Bombardment Thruster Utility Huge Storage Unit Device Advanced Heat Sink Storage Huge Storage Unit Processor Advanced Targeting Computer Hackware Hacking Suite Protection Centrium Medium Armor Plating Artifact Phase Armor Weapon Heavy Particle Gun Energy Gun Heavy Particle Gun Energy Cannon Advanced Beam Cannon Ballistic Gun Advanced KE Penetrator Ballistic Cannon Hypervelocity Mass Driver Launcher Rocket Array Special Weapon Plasma Cutter Piercing Weapon Plasma Lance Special Melee Weapon Improved Datajack Build | -11 -10 -10 -10 -8 -8 -8 -6 -6 -6 -6 -5 -5 -5 -5 -5 -5 -4 -3 -2 -2 -1 ------- Run | Yrd Mat Min Sub Mat Sto Rec Fac Low Zio Dee Pro Fac Ext Cet Arc Hub Fac Res Res Qua Acc Slots Evolved 18 | . . . . 4 . . 4 . . . . 2 . . . . 2 2 2 . 2 Power 2 | . . . . . . . . . . . . . . . . . 1 . . . 1 Propulsion 4 | . . . . 2 . . . . . . . 2 . . . . . . . . . Utility 11 | . . . . 2 . . 4 . . . . . . . . . 1 2 1 . 1 Weapon 1 | . . . . . . . . . . . . . . . . . . . 1 . . Parts Attached 571 | 7 11 7 9 32 15 11 13 . 8 21 4 5 30 14 9 10 54 74 53 78 106 Power 49 | 1 1 2 2 2 . 1 . . . 4 . . . 1 2 . 10 6 2 4 11 Engine 10 | 1 1 2 2 1 . 1 . . . 1 . . . . . . 1 . . . . Core 4 | . . . . 1 . . . . . . . . . . . . 2 . . 1 . Reactor 35 | . . . . . . . . . . 3 . . . 1 2 . 7 6 2 3 11 Propulsion 87 | 2 1 1 3 7 8 6 2 . 1 . . 2 7 2 . . 8 7 13 4 13 Treads 62 | 2 1 1 . 4 7 6 2 . 1 . . 2 7 2 . . 8 . 10 4 5 Leg 10 | . . . . . . . . . . . . . . . . . . 7 3 . . Wheel 7 | . . . 3 3 . . . . . . . . . . . . . . . . 1 Hover . | . . . . . . . . . . . . . . . . . . . . . . Flight 8 | . . . . . 1 . . . . . . . . . . . . . . . 7 Utility 284 | 2 5 2 3 12 4 4 9 . 2 9 . 3 18 5 7 8 23 42 33 53 40 Device 147 | 1 2 2 3 5 . 1 2 . . 1 . . 4 . 3 3 16 23 21 32 28 Storage 12 | 1 2 . . 1 . . . . . 1 . . 1 . . . . 2 . 1 3 Processor 13 | . . . . 1 . 1 2 . 2 . . . . . . . . 3 3 1 . Hackware 6 | . 1 . . . . . 1 . . . . . 1 . 1 1 . . . . 1 Protection 93 | . . . . 5 4 2 4 . . 7 . 3 12 5 3 4 7 14 9 7 7 Artifact 13 | . . . . . . . . . . . . . . . . . . . . 12 1 Weapon 151 | 2 4 2 1 11 3 . 2 . 5 8 4 . 5 6 . 2 13 19 5 17 42 Energy Gun 45 | 2 . . . 1 2 . 1 . 1 4 2 . 3 4 . 1 3 2 1 3 15 Energy Cannon 39 | . 3 . 1 6 1 . . . . . . . . . . . . 5 3 8 12 Ballistic Gun 28 | . 1 2 . 1 . . 1 . . 2 . . . 1 . . 7 6 1 2 4 Ballistic Cannon 3 | . . . . . . . . . . . . . . . . . 1 . . 2 . Launcher 29 | . . . . 3 . . . . 3 2 2 . 1 . . . 2 5 . 1 10 Special Weapon 5 | . . . . . . . . . 1 . . . 1 1 . . . . . 1 1 Impact Weapon . | . . . . . . . . . . . . . . . . . . . . . . Slashing Weapon . | . . . . . . . . . . . . . . . . . . . . . . Piercing Weapon 1 | . . . . . . . . . . . . . . . . . . 1 . . . Special Melee Weapon 1 | . . . . . . . . . . . . . . . . 1 . . . . . Unidentified Prototypes 37 | . 1 . 1 3 1 . . . 1 8 . . . 4 . 1 2 9 . 4 2 Corrupted Parts 7 | . . . . . . . . . . . . . . 2 . . 2 . . . 3 System Corruption 36 | . . . . . . . . . . . . . . 14 . . 10 . . . 12 Parts Lost 96 | . 1 3 2 4 1 . . . . . 1 1 2 . . 1 14 10 10 2 44 Power 8 | . . . . . . . . . . . . . . . . . 2 1 . . 5 Propulsion 27 | . 1 1 1 4 . . . . . . . . 2 . . . 4 3 1 . 10 Utility 46 | . . 1 1 . . . . . . . 1 1 . . . 1 5 6 8 1 21 Weapon 15 | . . 1 . . 1 . . . . . . . . . . . 3 . 1 1 8 Highest Loss Streak 10 | . 1 1 1 2 1 . . . . . 1 1 2 . . 1 4 6 3 1 10 To Critical Strikes 1 | . . . . . . . . . . . . . . . . . 1 . . . . Average Slot Usage (%) 90 | . 98 99 96 94 98 89 92 93 93 93 92 96 99 93 87 87 86 88 90 80 68 Engine 4 | . 14 14 16 6 9 9 6 6 6 2 . . . . . . . . . . . Reactor 3 | . . . . . . . . . . 3 6 5 5 5 4 5 7 7 8 8 10 Treads 23 | . 26 27 19 17 36 35 26 26 26 26 26 35 34 28 23 23 20 3 12 13 13 Leg 1 | . . . . . . . . . . . . . . . . . . 16 9 . . Device 13 | . 11 3 13 12 9 8 13 13 13 13 13 11 8 5 8 9 19 24 18 17 18 Storage 7 | . 14 14 13 8 9 9 6 6 6 6 6 5 5 5 5 5 5 3 4 4 5 Processor 5 | . . . . . . . 8 13 13 13 13 11 11 11 11 10 5 3 5 10 6 Hackware 1 | . 2 10 . . . . 3 . . . . . . . . 1 . . . . . Protection 11 | . . . . 13 16 9 12 13 13 12 12 13 18 23 18 17 14 16 17 10 2 Energy Gun 6 | . 1 . . 2 5 18 8 6 5 8 12 11 10 10 11 11 6 . 4 2 2 Energy Cannon 4 | . 25 15 13 13 12 . . . . . . . . . . . . 1 7 6 3 Ballistic Gun 2 | . 1 12 10 . . . 4 6 5 1 . . . . . . 2 5 . . 1 Peak Build Rating 206 | 9 15 16 27 34 36 37 60 60 63 81 82 87 86 124 125 127 146 171 182 200 206 Average Rating 85 | 5 13 14 17 29 32 36 56 60 60 73 80 85 80 107 124 126 135 148 163 175 141 On Entrance 76 | . 9 15 15 27 33 31 37 60 60 63 81 70 86 82 124 125 125 122 166 163 189 Naked Turns 3 | . . . . . . . . . . . . . . . . . . 2 . . 1 Heaviest Build 247 | 14 54 53 58 114 114 111 119 119 124 125 110 117 126 134 134 135 163 182 194 233 247 Greatest Support 217 | 40 40 40 40 80 80 80 98 98 98 90 90 148 148 210 210 210 217 160 180 200 200 Greatest Overweight (x) 6 | . 2 1 2 6 1 1 1 1 1 1 1 . . 1 . . 1 2 1 1 1 Average Overweight (x) . | . . 1 1 . 1 1 1 1 1 1 1 . . . . . . . . . . Largest Inventory Capacity 25 | 8 20 20 20 25 25 25 25 25 25 25 25 25 25 25 25 25 25 25 25 25 25 Average Capacity 23 | 7 17 20 20 21 25 25 25 25 25 25 25 25 25 25 25 25 25 24 25 25 22 Most Carried 25 | 6 19 20 20 24 25 25 25 25 25 25 25 25 25 25 25 25 25 25 25 25 25 Average Carried 22 | 5 14 19 19 20 24 24 23 25 24 24 25 23 24 24 24 24 23 23 23 24 16 Final Capacity 25 | 8 20 20 20 25 25 25 25 25 25 25 25 25 25 25 25 25 25 25 25 25 5 Final Carried 25 | 6 19 19 20 23 25 25 25 25 25 25 25 23 25 25 25 24 25 25 25 24 5 Class Distribution -------------------- 38% | Mutant 36% | Scavenger-Mutant 11% | Scavenger-Tank 9% | Commander-Mutant 4% | Scavenger-Gunner Dominant Class ---------------- Mutant | -10/Materials Mutant | -10/Mines Mutant | -10/Subcaves Scavenger-Mutant | -8/Materials Scavenger-Mutant | -8/Storage Mutant | -8/Recycling Commander-Mutant | -6/Factory Mutant | -6/Lower Caves Mutant | -6/Zion Mutant | -6/Deep Caves Mutant | -5/Proximity Caves Mutant | -5/Factory Scavenger-Mutant | -5/Extension Scavenger-Mutant | -5/Cetus Scavenger-Mutant | -5/Archives Scavenger-Mutant | -5/Hub_04(d) Scavenger-Mutant | -4/Factory Scavenger-Mutant | -3/Research Scavenger-Tank | -2/Research Scavenger-Tank | -2/Quarantine Scavenger-Tank | -1/Access Resources | -11 -10 -10 -10 -8 -8 -8 -6 -6 -6 -6 -5 -5 -5 -5 -5 -5 -4 -3 -2 -2 -1 ----------- Run | Yrd Mat Min Sub Mat Sto Rec Fac Low Zio Dee Pro Fac Ext Cet Arc Hub Fac Res Res Qua Acc Matter Collected 10644 | 270 145 372 220 441 183 241 383 . 98 387 186 285 297 218 135 101 1015 1951 449 1314 1953 Remotely 1547 | . . . . . . . . . . . . . . . . . 291 243 61 403 549 Salvage Created 18621 | 155 683 547 234 1269 500 634 311 . . 304 121 395 949 168 306 623 2188 1494 2077 2497 3166 Parts 840 | 15 36 42 11 62 21 22 9 . . 19 10 23 45 5 28 31 99 49 82 99 132 Haulers Intercepted 17 | . 2 . . 4 2 . 2 . . . . . . . . . 2 5 . . . Recyclers Shooed 14 | . . . . 3 . 2 . . . . . . 1 . . . 4 . 1 . 3 Parts Field Recycled . | . . . . . . . . . . . . . . . . . . . . . . Retrieved Matter . | . . . . . . . . . . . . . . . . . . . . . . Parts Self-Destructed 9 | . . . 4 . . . . . . . 5 . . . . . . . . . . Prevented . | . . . . . . . . . . . . . . . . . . . . . . Kills | -11 -10 -10 -10 -8 -8 -8 -6 -6 -6 -6 -5 -5 -5 -5 -5 -5 -4 -3 -2 -2 -1 ------- Run | Yrd Mat Min Sub Mat Sto Rec Fac Low Zio Dee Pro Fac Ext Cet Arc Hub Fac Res Res Qua Acc Combat Hostiles Destroyed 289 | . 13 18 5 26 5 11 2 . . 12 9 6 15 2 . 8 30 24 19 29 55 Melee 1 | . . . . . . . . . . . . . . . . . . . . . 1 Guns 107 | . 1 3 2 2 1 11 2 . . 4 . 6 12 1 . 8 21 8 4 4 17 Cannons 90 | . 12 15 3 16 4 . . . . . . . . . . . 1 1 14 17 7 AOE 77 | . . . . 5 . . . . . 8 9 . 3 . . . 8 15 . 3 26 Classes Destroyed 24 | 2 6 2 1 3 1 . . . . 1 . 1 . . . . . 2 3 1 1 Worker 24 | . 1 . . . 1 . . . . . . 2 . . . . 7 7 . 3 3 Builder 17 | . . 1 . . . . . . . . . . 1 . . . 4 3 . 1 7 Tunneler 5 | 4 . . . . . . . . . . . . . . . . . . . . 1 Hauler 17 | . 2 . . 4 2 . 2 . . . . . . . . . 2 5 . . . Recycler 12 | 1 . 1 . 1 1 . . . . . . . . . . . 1 1 2 2 2 Mechanic 1 | . . . . . . . . . . . . . . . . . . . 1 . . Operator 14 | . 1 . . 1 1 . . . . . . . 1 . 9 . . . . 1 . Watcher 14 | . 1 . . 2 . . . . . . . 1 3 1 . 2 2 . . 1 1 Swarmer 54 | . 3 11 . 10 . . . . . . 9 . 3 . . . 5 . . . 13 Cutter 2 | . . . . . . . . . . . . . . . . . . . . . 2 Grunt 85 | . 10 5 2 10 2 2 . . . . . . 4 . . 2 8 11 5 12 12 Brawler 6 | . . . . 1 1 2 . . . . . . . . . 1 . . . . 1 Duelist 5 | . . . . . 1 . . . . . . . . . . 1 1 . . 1 1 Protector 3 | . . . . . . . . . . . . . . . . . . . . 2 1 Sentry 27 | . . . . 4 1 6 . . . . . 1 6 . . 4 1 2 1 . 1 Demolisher 3 | . . . . . . . . . . . . . . . . . . 1 . . 2 Hunter 48 | . . . . 1 . 1 2 . . . . 2 2 . . . 12 7 5 4 12 Programmer 29 | . . . . . . . . . . . . 3 . . . . 3 2 4 8 9 Heavy 2 | . . . . . . . . . . . . . . . . . . . 1 . 1 Behemoth 3 | . . . . . . . . . . . . . . . . . . . 3 . . Cetus Guard 2 | . . . . . . . . . . . . . . 2 . . . . . . . Lightning 2 | . . . . . . . . . . . . . . . . . . . . 2 . Striker 1 | . . . . . . . . . . . . . . . . . . 1 . . . Subdweller 3 | . . . 3 . . . . . . . . . . . . . . . . . . Z-Light 8 | . . . . . . . . . . 8 . . . . . . . . . . . Assembled 5 | . . 2 . . . . . . . 3 . . . . . . . . . . . Best Kill Streak 17 | 5 4 4 2 7 2 4 2 . . 5 5 6 3 2 4 2 13 17 5 10 16 Combat Bots Only 14 | . 4 4 2 5 2 4 2 . . 5 5 4 3 1 . 2 6 8 4 5 14 Max Kills in Single Turn 8 | 1 2 1 1 3 1 1 2 . . 3 5 2 2 1 1 1 5 8 2 6 6 Gunslinging 1 | . . . . . . . 1 . . . . . 1 . . . . . . . . Exploded 5 | . . . . 3 . . . . . 3 5 . 2 . . . 4 4 . 2 4 Melee 1 | . . . . . . . . . . . . . . . . . . . . . 1 Uniques/NPCs Destroyed 1 | . . . . . . . . . . 1 . . . . . . . . . . . Z-Imprinter (-6/Deep Caves) Combat | -11 -10 -10 -10 -8 -8 -8 -6 -6 -6 -6 -5 -5 -5 -5 -5 -5 -4 -3 -2 -2 -1 -------- Run | Yrd Mat Min Sub Mat Sto Rec Fac Low Zio Dee Pro Fac Ext Cet Arc Hub Fac Res Res Qua Acc Hostile Shots Fired 2279 | . 52 61 26 100 28 71 31 . . 36 26 66 83 18 . 69 413 198 209 238 554 Missed 623 | . 11 9 5 28 8 21 8 . . 14 4 17 26 5 . 20 101 73 50 66 157 Intercepted 28 | . . . . . . . . . . . . . . . . . . 5 . . 23 Damage Taken 33989 | . 449 549 388 988 463 708 350 . . 520 386 932 1054 322 . 1386 5339 2944 3245 3328 10638 Core 4080 | . 56 70 93 186 . 37 66 . . 93 50 23 95 15 . 34 276 179 150 1047 1610 Absorbed by Shields 3057 | . . . . . . . 15 . . 159 . . 271 77 . . 529 481 705 346 474 Reduced by Siege Mode 120 | . . . . . . . . . . . . . . . . . 120 . . . . Redirected to Core 1653 | . . . . . . . . . . . . . . . . . . . . 899 754 Redirected to Shielding 318 | . . . . . . . . . . . 43 . 129 29 . 117 . . . . . Ignored by Resistances 1721 | . . . . . . . . . . . . . 20 17 . . 417 135 111 603 418 Regen/Repaired (Parts) 1172 | . . . . . 120 . . . 1052 . . . . . . . . . . . . Core Remaining (%) 63 | 100 . . 12 . . 59 . . . . 75 . . . . 83 76 86 . 17 . Volleys Fired 976 | 11 41 44 41 92 27 24 13 . . 13 4 25 63 14 37 60 138 49 66 75 139 Largest 3 | 2 2 2 2 2 2 2 2 . . 2 2 2 2 2 2 2 2 2 3 3 3 Hottest 320 | 90 136 136 91 130 130 110 105 . . 105 120 120 120 140 140 140 275 95 320 320 279 Shots Fired 1966 | 22 82 88 70 144 56 48 26 . . 22 5 49 125 27 66 112 258 99 194 196 277 Gun 1217 | 22 12 35 27 26 21 48 26 . . 12 2 49 123 27 66 112 229 72 63 57 188 Cannon 691 | . 70 53 43 116 35 . . . . . . . . . . . 22 13 131 137 71 Launcher 56 | . . . . 2 . . . . . 10 3 . 2 . . . 7 14 . 2 16 Special 2 | . . . . . . . . . . . . . . . . . . . . . 2 Kinetic 430 | . 12 35 27 . . . 13 . . 4 . . . . . . 136 83 . 51 69 Thermal 1178 | 22 70 53 43 142 56 48 13 . . 8 1 24 62 12 31 51 101 2 194 110 135 Explosive 56 | . . . . 2 . . . . . 10 3 . 2 . . . 7 14 . 2 16 Electromagnetic 88 | . . . . . . . . . . . . . . . . . . . . 33 55 Phasic 212 | . . . . . . . . . . . 1 25 61 15 35 61 14 . . . . Robot Hit Streak 34 | 4 8 5 15 10 8 8 6 . . 9 3 12 22 8 8 18 24 13 32 18 34 Robot Miss Streak 7 | 1 2 4 2 4 3 2 3 . . 5 3 2 3 3 4 4 6 3 4 6 7 Penetration Max 1 | . . . . . . . . . . . . . . . . . 1 . . 1 1 Secondary Targets 8 | . . . . . . 1 1 . . 1 . . 1 . . 1 1 1 . . 1 Max Gunslinging Chain 1 | . . . . . . 1 1 . . 1 . . 1 . . 1 1 1 . . 1 Capacitor 6 | . . . . . . . . . . . . . . . . . . . . . 6 Shots Hit Robots 1237 | 12 50 34 37 87 32 31 17 . . 15 4 32 84 19 38 73 174 62 130 111 195 Core Hits 882 | 6 22 24 8 34 17 13 7 . . 46 13 16 38 10 17 21 95 141 56 84 214 Critical Kills 28 | . . 1 . 4 . . . . . . . . . . . . 7 6 1 7 2 Critical Parts Destroyed 28 | . . . . . . . . . . . . . . . . . 12 5 . 10 1 Critical Strikes 85 | 1 . 1 . 4 . 2 . . . 2 . 1 8 1 2 2 22 14 1 20 4 Burn 5 | 1 . . . . . 2 . . . 2 . . . . . . . . . . . Meltdown 7 | . . . . 4 . . . . . . . . . . . . . . 1 2 . Destroy 50 | . . 1 . . . . . . . . . . . . . . 19 12 . 15 3 Blast 5 | . . . . . . . . . . . . . . . . . 3 2 . . . Corrupt 4 | . . . . . . . . . . . . . . . . . . . . 3 1 Intensify 14 | . . . . . . . . . . . . 1 8 1 2 2 . . . . . Melee Attacks . | . . . . . . . . . . . . . . . . . . . . . . Impact . | . . . . . . . . . . . . . . . . . . . . . . Slashing . | . . . . . . . . . . . . . . . . . . . . . . Piercing . | . . . . . . . . . . . . . . . . . . . . . . Sneak Attacks . | . . . . . . . . . . . . . . . . . . . . . . Combat Hostiles . | . . . . . . . . . . . . . . . . . . . . . . Follow-up Attacks . | . . . . . . . . . . . . . . . . . . . . . . Damage Inflicted 52866 | 134 944 710 848 3013 892 632 383 . . 1540 697 1143 2918 617 1210 2346 6670 5494 5073 6306 11296 Guns 23054 | 134 82 156 210 342 204 609 383 . . 202 33 1103 2598 617 1210 2297 4749 1405 1389 1040 4291 Cannons 14785 | . 862 535 638 2403 544 . . . . . . . . . . . 464 337 3684 3433 1885 Explosions 14740 | . . . . 262 144 . . . . 1338 664 . 266 . . . 1452 3723 . 1833 5058 Melee . | . . . . . . . . . . . . . . . . . . . . . . Ramming 287 | . . 19 . 6 . 23 . . . . . 40 54 . . 49 5 29 . . 62 Kinetic 7436 | . 82 156 210 . . . 187 . . 48 . . . . . . 2915 1742 . 561 1535 Thermal 23646 | 134 862 535 638 2745 748 609 196 . . 154 . 542 1212 320 385 911 2442 . 5073 2872 3268 Explosive 14261 | . . . . 262 144 . . . . 1338 664 . 266 . . . 1143 3723 . 1663 5058 Electromagnetic 2583 | . . . . . . . . . . . . . . . . . . . . 1210 1373 Impact . | . . . . . . . . . . . . . . . . . . . . . . Slashing . | . . . . . . . . . . . . . . . . . . . . . . Piercing . | . . . . . . . . . . . . . . . . . . . . . . Phasic 4653 | . . . . . . . . . . . 33 561 1386 297 825 1386 165 . . . . Highest Corruption 30 | . . . 2 5 5 6 . . . . . 3 4 18 18 5 17 6 4 18 30 Average Corruption 6 | . . . 2 5 5 5 . . . . . 1 3 13 10 5 5 2 2 9 21 Corruption Purged 21 | . . . . . . . . . . . . . . . 18 . . . . . 3 Corruption Blocked . | . . . . . . . . . . . . . . . . . . . . . . Effects 428 | . . . 17 28 36 78 . . . . . 4 28 21 17 2 31 29 4 46 87 Message Errors 108 | . . . 3 6 9 17 . . . . . 1 10 8 4 . 8 8 3 11 20 Matter Fused 87 | . . . 6 10 4 22 . . . . . . 5 3 5 1 5 3 1 11 11 Heat Flow Errors 44 | . . . 2 1 4 5 . . . . . . 3 1 . . 4 6 . 7 11 Energy Discharges 46 | . . . . 6 3 6 . . . . . . 1 3 1 . 6 5 . 4 11 Parts Rejected 7 | . . . . . . 2 . . . . . . 1 . . . 1 . . . 3 Parts Fused 2 | . . . 1 . . . . . . . . . 1 . . . . . . . . Data Loss (minor) 50 | . . . 1 3 5 14 . . . . . 1 3 2 1 . 1 5 . 6 8 Data Loss (major) 19 | . . . 1 . 5 4 . . . . . . 3 2 2 . . . . . 2 Misfires 20 | . . . 2 . 3 2 . . . . . . 1 1 1 1 1 1 . 5 2 Alerts 14 | . . . 1 . 2 4 . . . . . 1 . 1 1 . . 1 . 1 2 Misdirections 9 | . . . . . . . . . . . . . . . . . . . . . 9 Weapon Failures 22 | . . . . 2 1 2 . . . . . 1 . . 2 . 5 . . 1 8 Overload Shots 3 | . . . . . . . . . . . . . . . . . 3 . . . . Effects 1 | . . . . . . . . . . . . . . . . . 1 . . . . Energy Bleed 1 | . . . . . . . . . . . . . . . . . 1 . . . . Overflow Damage 712 | . 11 2 . 120 8 . . . . 1 14 . 42 . . . 33 77 89 203 112 Projectiles 361 | . 11 2 . 111 . . . . . . . . . . . . 3 . 89 76 69 Explosions 351 | . . . . 9 8 . . . . 1 14 . 42 . . . 30 77 . 127 43 Melee . | . . . . . . . . . . . . . . . . . . . . . . Knockbacks 7 | . . . . . . . . . . . . . . . . . 1 . . 6 . Impact . | . . . . . . . . . . . . . . . . . . . . . . Kinetic 7 | . . . . . . . . . . . . . . . . . 1 . . 6 . Secondary . | . . . . . . . . . . . . . . . . . . . . . . Self-Inflicted Damage 1143 | . . . . . 63 . . . . . 39 . . . . . 162 591 . 106 182 Shots 46 | . . . . . 1 . . . . . 1 . . . . . 8 25 . 2 9 Rammed 29 | . . 4 . 2 . 4 . . . . . 2 3 . . 5 . 2 . . 7 Targets Rammed 35 | . . 5 . 2 . 4 . . . . . 3 4 . . 5 1 4 . . 7 Kicked 2 | . . . . . . . . . . . . . . . . . . 2 . . . Crushed 4 | . . 1 . . . . . . . . . 1 1 . . . 1 . . . . Highest Temperature 510 | 202 225 317 182 375 257 252 . . . . . . 214 221 . 244 510 261 199 181 441 Average Temperature 94 | 113 84 110 21 99 52 46 . . . . . . 62 117 . 64 112 54 108 40 141 Received Heat Transfer 4209 | . 192 173 105 468 159 243 . . . 147 9 36 201 40 . 288 783 237 363 261 504 Effects 28 | . . 2 . 4 . . . . . . . . . . . . 4 1 . . 17 Shutdowns 10 | . . . . . . . . . . . . . . . . . 1 . . . 9 Energy Bleed 3 | . . . . . . . . . . . . . . . . . . 1 . . 2 Interference 8 | . . 1 . 3 . . . . . . . . . . . . 1 . . . 3 Matter Decay 3 | . . . . 1 . . . . . . . . . . . . 1 . . . 1 Short Circuit 3 | . . 1 . . . . . . . . . . . . . . 1 . . . 1 Damage (minor) 1 | . . . . . . . . . . . . . . . . . . . . . 1 Siege Activations 3 | . . . . . . . . . . . . . . . . . 1 . 2 . . Total Turns 47 | . . . . . . . . . . . . . . . . . 42 . 5 . . Longest Duration 42 | . . . . . . . . . . . . . . . . . 42 . 3 . . Robots Corrupted 6 | . . . . . . . . . . . . . . . . . . . . 3 3 Combat Hostiles 6 | . . . . . . . . . . . . . . . . . . . . 3 3 Parts Fried 16 | . . . . . . . . . . . . . . . . . . . . 10 6 Impact Corruptions . | . . . . . . . . . . . . . . . . . . . . . . Robots Melted 8 | . . . . 4 . . . . . . . . . . . . . . 1 2 1 Combat Hostiles 7 | . . . . 3 . . . . . . . . . . . . . . 1 2 1 Parts Melted 74 | 2 7 . . 10 1 2 . . . 1 . 1 8 1 . 1 6 . 18 6 10 Heat Transferred 28177 | 457 1554 962 592 2590 1258 1295 450 . . 550 . 629 1554 407 518 1184 2853 . 5143 2555 3626 Parts Sabotaged . | . . . . . . . . . . . . . . . . . . . . . . Parts Stolen . | . . . . . . . . . . . . . . . . . . . . . . Parts Stripped . | . . . . . . . . . . . . . . . . . . . . . . Power Chain Reactions 1 | . . . . . . . . . . . . . . . . . . . . 1 . Alert | -11 -10 -10 -10 -8 -8 -8 -6 -6 -6 -6 -5 -5 -5 -5 -5 -5 -4 -3 -2 -2 -1 ------- Run | Yrd Mat Min Sub Mat Sto Rec Fac Low Zio Dee Pro Fac Ext Cet Arc Hub Fac Res Res Qua Acc Peak Influence 1391 | 25 213 260 . 570 382 315 347 . . . . 200 1165 799 610 553 957 785 463 834 1391 Initial 652 | . 16 40 . . 150 91 74 . . . . . 32 652 244 143 270 458 349 243 410 Average 358 | 11 117 77 . 316 243 122 169 . . . . 43 528 675 512 349 460 534 325 357 884 Maximum Alert Level 4 | . 1 1 . 2 1 1 1 . . . . 1 4 3 2 2 3 3 2 3 4 Low Security (%) 33 | 100 78 82 . 13 32 66 66 . . . . 95 15 . . 17 25 5 12 15 . Level 1 30 | . 21 17 . 59 67 33 33 . . . . 4 31 . 6 41 26 10 67 56 . Level 2 23 | . . . . 27 . . . . . . . . 25 55 93 41 9 77 20 22 34 Level 3 8 | . . . . . . . . . . . . . 17 44 . . 38 5 . 5 29 Level 4 3 | . . . . . . . . . . . . . 10 . . . . . . . 35 Level 5 . | . . . . . . . . . . . . . . . . . . . . . . High Security . | . . . . . . . . . . . . . . . . . . . . . . Max Security . | . . . . . . . . . . . . . . . . . . . . . . Squads Dispatched 74 | . 4 . . 2 3 . 3 . . . . 3 8 . . 4 9 8 3 6 21 Investigation 5 | . 2 . . . . . . . . . . . 1 . . 1 . 1 . . . Extermination 16 | . . . . . . . 1 . . . . 2 . . . . 3 . 2 3 5 Reinforcement 42 | . 2 . . 2 2 . 2 . . . . 1 7 . . 1 5 7 1 2 10 Assault 5 | . . . . . 1 . . . . . . . . . . . 1 . . 1 2 Garrison 6 | . . . . . . . . . . . . . . . . 2 . . . . 4 Intercept . | . . . . . . . . . . . . . . . . . . . . . . Searches Triggered . | . . . . . . . . . . . . . . . . . . . . . . Construction Impeded 10 | . . . . . . . 1 . . . . 1 3 . . . 1 1 . . 3 Haulers Reinforced 9 | . . . . . . . . . . . . . . . . . 4 3 . 1 1 Active Scanning Responses . | . . . . . . . . . . . . . . . . . . . . . . Cargo Convoy Interrupts . | . . . . . . . . . . . . . . . . . . . . . . Stealth | -11 -10 -10 -10 -8 -8 -8 -6 -6 -6 -6 -5 -5 -5 -5 -5 -5 -4 -3 -2 -2 -1 --------- Run | Yrd Mat Min Sub Mat Sto Rec Fac Low Zio Dee Pro Fac Ext Cet Arc Hub Fac Res Res Qua Acc Distress Signals 30 | . . . . 3 1 . . . . . . 1 2 3 . . . 10 3 3 4 Communications Jammed 26 | . . . . . . . . . . . . . . . . . 17 9 . . . Distress Signals 26 | . . . . . . . . . . . . . . . . . 17 9 . . . Times Spotted 519 | . 22 20 5 38 33 18 8 . . 9 10 12 44 10 22 22 38 40 23 44 101 Peak Tracking Total 13 | . 6 3 2 6 5 8 3 . . 5 5 3 7 5 3 4 7 8 5 8 13 Tactical Retreats 38 | . 3 2 . 2 1 2 . . . . . . 6 . . 3 4 1 1 3 10 Traps | -11 -10 -10 -10 -8 -8 -8 -6 -6 -6 -6 -5 -5 -5 -5 -5 -5 -4 -3 -2 -2 -1 ------- Run | Yrd Mat Min Sub Mat Sto Rec Fac Low Zio Dee Pro Fac Ext Cet Arc Hub Fac Res Res Qua Acc Traps Triggered 10 | . 2 . . . . . . . . . . . 1 . . . 2 2 2 . 1 Indirectly . | . . . . . . . . . . . . . . . . . . . . . . Trap Hack Attempts . | . . . . . . . . . . . . . . . . . . . . . . Triggered . | . . . . . . . . . . . . . . . . . . . . . . Disarmed . | . . . . . . . . . . . . . . . . . . . . . . Reprogrammed . | . . . . . . . . . . . . . . . . . . . . . . Reused . | . . . . . . . . . . . . . . . . . . . . . . Traps Extracted . | . . . . . . . . . . . . . . . . . . . . . . Installed . | . . . . . . . . . . . . . . . . . . . . . . Triggered 1 | . . . . . . . . . . . . . . . . . . 1 . . . Most Traps Carried 2 | . . . 2 2 2 2 2 2 2 2 . . . . . . . . . . . Machines | -11 -10 -10 -10 -8 -8 -8 -6 -6 -6 -6 -5 -5 -5 -5 -5 -5 -4 -3 -2 -2 -1 ---------- Run | Yrd Mat Min Sub Mat Sto Rec Fac Low Zio Dee Pro Fac Ext Cet Arc Hub Fac Res Res Qua Acc Machines Disabled 48 | . . . 1 3 4 . 3 . 4 . . . 3 2 4 . 7 1 1 14 1 Max in Single Turn 5 | . . . 1 1 1 . . . 1 . . . 1 1 1 . 5 1 1 3 1 Garrison Access 3 | . . . . 1 1 . . . . . . . . . . . . 1 . . . Network Hub 1 | . . . . . . . . . . . . . . . . 1 . . . . . Machines Repaired . | . . . . . . . . . . . . . . . . . . . . . . Machines Dismantled 7 | . . . . . . . . . 4 . . . 1 1 . . . . . 1 . Machines Sabotaged 1 | . . . . . . . . . . . . . . . . 1 . . . . . Overloaded Fab Kills . | . . . . . . . . . . . . . . . . . . . . . . Hacking | -11 -10 -10 -10 -8 -8 -8 -6 -6 -6 -6 -5 -5 -5 -5 -5 -5 -4 -3 -2 -2 -1 --------- Run | Yrd Mat Min Sub Mat Sto Rec Fac Low Zio Dee Pro Fac Ext Cet Arc Hub Fac Res Res Qua Acc Machines Accessed 61 | . 5 . 1 9 8 7 4 . . . . 3 10 2 . 2 1 1 1 7 . Terminals 47 | . 4 . . 7 5 6 4 . . . . 3 10 2 . 1 1 . . 4 . Fabricators 1 | . . . . . . . . . . . . . . . . . . 1 . . . Repair Stations 6 | . 1 . . . 2 . . . . . . . . . . . . . 1 2 . Recycling Units 1 | . . . . . . 1 . . . . . . . . . . . . . . . Scanalyzers 1 | . . . . 1 . . . . . . . . . . . . . . . . . Garrison Access 4 | . . . . 1 1 . . . . . . . . . . 1 . . . 1 . Total Hacks 158 | . 15 . 9 29 26 14 9 . . . . 8 21 4 . 2 1 1 2 17 . Successful 69 | . 7 . 9 14 15 4 3 . . . . 2 6 1 . 1 1 . 1 5 . Failed 88 | . 7 . . 15 11 10 6 . . . . 6 15 3 . 1 . 1 1 12 . Catastrophic 14 | . . . . . 3 3 1 . . . . . 3 . . . . 1 1 2 . Database Lockouts 1 | . 1 . . . . . . . . . . . . . . . . . . . . Manual 37 | . 6 . . 9 8 4 . . . . . 3 . 1 . 1 . . . 5 . Terminals 121 | . 13 . . 22 20 12 9 . . . . 8 21 4 . 1 1 . . 10 . Fabricators 1 | . . . . . . . . . . . . . . . . . . 1 . . . Repair Stations 12 | . 2 . . . 4 . . . . . . . . . . . . . 2 4 . Recycling Units 2 | . . . . . . 2 . . . . . . . . . . . . . . . Scanalyzers 5 | . . . . 5 . . . . . . . . . . . . . . . . . Garrison Access 8 | . . . . 2 2 . . . . . . . . . . 1 . . . 3 . Terminal Hacks 52 | . 5 . 9 9 10 3 3 . . . . 2 6 1 . . 1 . . 3 . Record 12 | . . . 8 . . . 1 . . . . . . 1 . . . . . 2 . Robot Analysis 6 | . 2 . . 3 . . 1 . . . . . . . . . . . . . . Prototype ID Bank 4 | . 1 . . 1 1 1 . . . . . . . . . . . . . . . Open Door 7 | . . . . . . . . . . . . 1 6 . . . . . . . . Open DSF 1 | . . . . . . . . . . . . . . . . . 1 . . . . Level Access Points 1 | . . . . . . 1 . . . . . . . . . . . . . . . Branch Access Points 4 | . . . . . 1 1 1 . . . . . . . . . . . . 1 . Terminal Index 3 | . 1 . . 1 1 . . . . . . . . . . . . . . . . Alert Level 1 | . . . . . 1 . . . . . . . . . . . . . . . . Unreport Threat 2 | . . . . 1 1 . . . . . . . . . . . . . . . . Locate Traps 3 | . . . . . 2 . . . . . . 1 . . . . . . . . . Hauler Manifests 1 | . . . . 1 . . . . . . . . . . . . . . . . . Registered Components 1 | . . . . . 1 . . . . . . . . . . . . . . . . Zone Layout 5 | . 1 . . 2 2 . . . . . . . . . . . . . . . . Derelict Proto ID Bank 1 | . . . 1 . . . . . . . . . . . . . . . . . . Fabricator Hacks . | . . . . . . . . . . . . . . . . . . . . . . Repair Station Hacks 7 | . 1 . . . 4 . . . . . . . . . . . . . 1 1 . Scan Component 5 | . 1 . . . 2 . . . . . . . . . . . . . 1 1 . Repair 2 | . . . . . 2 . . . . . . . . . . . . . . . . Recycling Unit Hacks 1 | . . . . . . 1 . . . . . . . . . . . . . . . Report Inventory 1 | . . . . . . 1 . . . . . . . . . . . . . . . Scanalyzer 2 | . . . . 2 . . . . . . . . . . . . . . . . . Insert Component 1 | . . . . 1 . . . . . . . . . . . . . . . . . Analyze 1 | . . . . 1 . . . . . . . . . . . . . . . . . Garrison Access Hacks 1 | . . . . 1 . . . . . . . . . . . . . . . . . Seal Access 1 | . . . . 1 . . . . . . . . . . . . . . . . . Unauthorized Hacks 6 | . 1 . . 2 1 . . . . . . . . . . 1 . . . 1 . Terminals 6 | . 1 . . 2 1 . . . . . . . . . . 1 . . . 1 . Botnet 5 | . 1 . . 2 1 . . . . . . . . . . . . . . 1 . Sabotage 1 | . . . . . . . . . . . . . . . . 1 . . . . . Fabricators . | . . . . . . . . . . . . . . . . . . . . . . Repair Stations . | . . . . . . . . . . . . . . . . . . . . . . Recycling Units . | . . . . . . . . . . . . . . . . . . . . . . Scanalyzers . | . . . . . . . . . . . . . . . . . . . . . . Garrison Access . | . . . . . . . . . . . . . . . . . . . . . . Data Cores Recovered . | . . . . . . . . . . . . . . . . . . . . . . Used . | . . . . . . . . . . . . . . . . . . . . . . Hacking Detections 48 | . 5 . . 8 6 7 4 . . . . 2 6 2 . 1 . 1 1 5 . Full Trace Events 1 | . . . . . . . . . . . . . 1 . . . . . . . . Feedback Events . | . . . . . . . . . . . . . . . . . . . . . . Feedback Blocked . | . . . . . . . . . . . . . . . . . . . . . . Robot Schematics Acquired 3 | . . . . . . . . . 3 . . . . . . . . . . . . Robots Built . | . . . . . . . . . . . . . . . . . . . . . . Authchips . | . . . . . . . . . . . . . . . . . . . . . . Time . | . . . . . . . . . . . . . . . . . . . . . . Total Robot Build Rating . | . . . . . . . . . . . . . . . . . . . . . . Part Schematics Acquired 14 | . . . . . . . . . 14 . . . . . . . . . . . . Parts Built . | . . . . . . . . . . . . . . . . . . . . . . Authchips . | . . . . . . . . . . . . . . . . . . . . . . Time . | . . . . . . . . . . . . . . . . . . . . . . Total Part Build Rating . | . . . . . . . . . . . . . . . . . . . . . . Parts Repaired 2 | . . . . . 2 . . . . . . . . . . . . . . . . Time 70 | . . . . . 70 . . . . . . . . . . . . . . . . Parts Recycled . | . . . . . . . . . . . . . . . . . . . . . . Recycled Matter . | . . . . . . . . . . . . . . . . . . . . . . Retrieved Matter . | . . . . . . . . . . . . . . . . . . . . . . Retrieved Components . | . . . . . . . . . . . . . . . . . . . . . . Parts Scanalyzed 1 | . . . . 1 . . . . . . . . . . . . . . . . . Part Schematics Acquired . | . . . . . . . . . . . . . . . . . . . . . . Parts Damaged . | . . . . . . . . . . . . . . . . . . . . . . Bothacking | -11 -10 -10 -10 -8 -8 -8 -6 -6 -6 -6 -5 -5 -5 -5 -5 -5 -4 -3 -2 -2 -1 ------------ Run | Yrd Mat Min Sub Mat Sto Rec Fac Low Zio Dee Pro Fac Ext Cet Arc Hub Fac Res Res Qua Acc Used RIF Installer . | . . . . . . . . . . . . . . . . . . . . . . Robots Hacked . | . . . . . . . . . . . . . . . . . . . . . . Non-combat . | . . . . . . . . . . . . . . . . . . . . . . Combat . | . . . . . . . . . . . . . . . . . . . . . . Robot Hacks Applied . | . . . . . . . . . . . . . . . . . . . . . . Relay Couplers Released 6 | . . . . . 3 . . . . . . . . . . . . 3 . . . Machine Destruction 6 | . . . . . 3 . . . . . . . . . . . . 3 . . . Fabnet Peak Effective % . | . . . . . . . . . . . . . . . . . . . . . . Robots Rewired 30 | . . . . . . 19 . . . . . . 11 . . . . . . . . Allies Hacked 1 | . . . . . . . 1 . . . . . . . . . . . . . . Hacks Repelled . | . . . . . . . . . . . . . . . . . . . . . . Allies | -11 -10 -10 -10 -8 -8 -8 -6 -6 -6 -6 -5 -5 -5 -5 -5 -5 -4 -3 -2 -2 -1 -------- Run | Yrd Mat Min Sub Mat Sto Rec Fac Low Zio Dee Pro Fac Ext Cet Arc Hub Fac Res Res Qua Acc Total Allies 122 | . . . . . 10 19 . . . . . . 22 5 . . . . . 2 64 Largest Group 24 | . . . . . 10 18 18 3 3 3 . . 12 11 7 4 . . . 1 24 Highest-Rated Group 670 | . . . . . 173 293 293 55 55 55 . . 490 670 670 384 . . . 45 341 Highest-Rated Ally 159 | . . . . . 29 34 34 27 27 27 . . 159 159 159 96 . . . 45 15 Total Orders 15 | . . . . . . . . . . . . . . . . . 2 1 5 4 3 RETURN 15 | . . . . . . . . . . . . . . . . . 2 1 5 4 3 Ally Attacks 766 | . . . . . 64 16 70 . . 2 . . 165 60 43 35 . . . . 311 Total Damage 17020 | . . . . . 842 869 1693 . . 18 . . 3261 1479 1717 1165 . . . . 5976 Kills 104 | . . . . . 10 11 16 . . . . . 24 7 6 6 . . . . 24 Allies Corrupted 2 | . . . . . 1 . . . . . . . . . . . . . . 1 . Allies Melted . | . . . . . . . . . . . . . . . . . . . . . . Intel | -11 -10 -10 -10 -8 -8 -8 -6 -6 -6 -6 -5 -5 -5 -5 -5 -5 -4 -3 -2 -2 -1 ------- Run | Yrd Mat Min Sub Mat Sto Rec Fac Low Zio Dee Pro Fac Ext Cet Arc Hub Fac Res Res Qua Acc Robot Analysis Total 6 | . 2 . . 3 . . 1 . . . . . . . . . . . . . . Derelict Logs Recovered 8 | . . 3 1 . . . . . 1 . 3 . . . . . . . . . . Drone Launches 16 | . . . . . . . . . . . . . . . . . 2 1 5 4 4 Drone Recoveries 16 | . . . . . . . . . . . . . . . . . 2 1 5 4 4 Decoded 0b10 Intel 50 | . . . . . . . . . . . . 11 21 1 2 15 . . . . . Traps 31 | . . . . . . . . . . . . 10 17 . . 4 . . . . . Emergency Access 11 | . . . . . . . . . . . . . 3 . . 8 . . . . . Garrisons 1 | . . . . . . . . . . . . . . . . 1 . . . . . Exits 7 | . . . . . . . . . . . . 1 1 1 2 2 . . . . . Exploration | -11 -10 -10 -10 -8 -8 -8 -6 -6 -6 -6 -5 -5 -5 -5 -5 -5 -4 -3 -2 -2 -1 ------------- Run | Yrd Mat Min Sub Mat Sto Rec Fac Low Zio Dee Pro Fac Ext Cet Arc Hub Fac Res Res Qua Acc Turns Passed 26848 | 129 1126 1659 837 1267 1294 2988 899 86 1915 1374 607 573 1528 539 596 646 1644 2240 1036 1955 1910 Spaces Moved 11069 | 62 452 617 382 588 469 1067 339 36 718 517 239 287 701 251 126 282 717 1091 356 639 1133 Core 119 | 17 . . . . . . . . . . . . . . . . . 2 . . 100 Treads 8907 | 45 452 617 210 243 469 1067 339 36 718 517 239 287 701 251 126 282 717 225 201 639 526 Legs 1019 | . . . . . . . . . . . . . . . . . . 864 155 . . Wheels 517 | . . . 172 345 . . . . . . . . . . . . . . . . . Hover . | . . . . . . . . . . . . . . . . . . . . . . Flight 507 | . . . . . . . . . . . . . . . . . . . . . 507 Fastest Speed 31 | 50 160 240 117 105 240 240 245 245 245 247 247 165 161 162 162 162 160 50 106 150 31 Average Speed 197 | 129 201 240 185 144 240 245 246 245 246 247 247 165 162 174 162 162 166 177 203 247 118 Slowest Speed 320 | 160 320 240 240 240 240 247 247 245 247 247 247 165 166 243 162 162 240 320 250 250 245 Overloaded Moves . | . . . . . . . . . . . . . . . . . . . . . . Propulsion Burnouts . | . . . . . . . . . . . . . . . . . . . . . . Robots Hopped 4 | . . . . . . . . . . . . . . . . . . . . . 4 Cave-ins Triggered . | . . . . . . . . . . . . . . . . . . . . . . Exploration Rate (%) 49 | 5 64 101 23 50 84 96 14 7 77 65 56 9 89 80 81 25 22 33 12 53 37 Regions Visited 21 Branch Regions 13 Pre-discovered Areas 4 | . . 1 . . 1 . . . 1 . 1 . . . . . . . . . . Known Exits Taken 10 | . . . . 1 1 1 1 . . . . 1 . . 1 1 . 1 1 1 . Unknown Exits Taken 11 | 1 1 1 1 . . . . 1 1 1 1 . 1 1 . . 1 . . . . Scrap Searched 8 | . . 1 3 . . . . . 3 . 1 . . . . . . . . . . Spaces Dug 47 | . . . . 1 . . . . . . . 1 2 . . 11 . 20 2 7 3 Terrain Destroyed 899 | . . . . 43 25 . . . . 120 60 8 39 5 7 29 190 130 26 74 143 Melee . | . . . . . . . . . . . . . . . . . . . . . . Projectile 246 | . . . . 23 12 . . . . . 1 8 32 5 7 29 57 5 26 21 20 AOE 653 | . . . . 20 13 . . . . 120 59 . 7 . . . 133 125 . 53 123 Terrain Rammed . | . . . . . . . . . . . . . . . . . . . . . . Walls Destroyed . | . . . . . . . . . . . . . . . . . . . . . . Machines Disabled . | . . . . . . . . . . . . . . . . . . . . . . Actions | -11 -10 -10 -10 -8 -8 -8 -6 -6 -6 -6 -5 -5 -5 -5 -5 -5 -4 -3 -2 -2 -1 --------- Run | Yrd Mat Min Sub Mat Sto Rec Fac Low Zio Dee Pro Fac Ext Cet Arc Hub Fac Res Res Qua Acc Total 14348 | 85 587 712 450 877 584 1380 381 35 794 586 248 337 951 313 452 382 969 1298 564 901 1462 Wait 752 | . 59 22 7 107 58 32 3 . 9 2 . 6 20 2 268 16 23 6 41 36 35 Move 11040 | 61 451 616 381 587 468 1066 338 35 717 516 238 286 700 250 125 281 716 1090 355 638 1125 Hop 4 | . . . . . . . . . . . . . . . . . . . . . 4 Pick Up 221 | 6 16 9 5 27 4 3 5 . 10 11 1 8 13 7 3 2 20 42 12 4 13 Fast Attach 265 | 7 4 1 3 8 7 8 5 . 3 10 . . 15 7 9 7 18 32 28 51 42 Attach 117 | . . 3 3 8 2 1 4 . . 1 . 5 2 . . . 19 15 12 6 36 Detach 29 | . . . 1 . . . . . . . . . . . . . 2 3 7 6 10 Swap 190 | . 7 3 3 16 6 2 4 . 5 10 4 . 13 7 . 3 17 27 13 22 28 Drop 342 | . 9 9 6 30 12 10 9 . 13 23 1 4 27 18 10 8 15 30 30 55 23 Fire 976 | 11 41 44 41 92 27 24 13 . . 13 4 25 63 14 37 60 138 49 66 75 139 Melee . | . . . . . . . . . . . . . . . . . . . . . . Ram . | . . . . . . . . . . . . . . . . . . . . . . Kick 2 | . . . . . . . . . . . . . . . . . . 2 . . . Crush 33 | . . 5 . 2 . 4 . . . . . 3 4 . . 5 1 2 . . 7 Escape Stasis . | . . . . . . . . . . . . . . . . . . . . . . Rewire 316 | . . . . . . 230 . . . . . . 86 . . . . . . . . Trap . | . . . . . . . . . . . . . . . . . . . . . . Miscellaneous 61 | . . . . . . . . . 37 . . . 8 8 . . . . . 8 . Route ------- -11/Scrapyard -10/Materials (discovered 3 exits: *Mat x2 / [*Min]) -10/Mines (discovered 3 exits: *Mat x2 / *Sub) -10/Subcaves -8/Materials (discovered 4 exits: [*Fac x2] / *Sto x2) -8/Storage (discovered 2 exits: [*Fac] / *Rec) -8/Recycling -6/Factory (discovered 4 exits: *Fac x2 / *Low x2) -6/Lower Caves -6/Zion -6/Deep Caves -5/Proximity Caves -5/Factory (discovered 3 exits: Upp x2 / *Ext) -5/Extension (discovered 3 exits: *Fac x2 / *Cet) -5/Cetus (discovered 2 exits: *Fac / [*Arc]) -5/Archives (discovered 3 exits: *Fac / *Hub x2) -5/Hub_04(d) (discovered 3 exits: *Fac x3) -4/Factory -3/Research -2/Research (discovered 5 exits: Acc x3 / *Qua x2) -2/Quarantine -1/Access History --------- Turn | Location | Event 15 | -11/Scrapyard | Discovered new exit (range 14) 130 | -11/Scrapyard | Entered Materials 332 | -10/Materials | Build established: Mutant 661 | -10/Materials | Discovered new exit (range 16) 1058 | -10/Materials | Discovered new exit (range 16) 1134 | -10/Materials | Discovered new exit (range 13) 1153 | -10/Materials | Central database locked down 1256 | -10/Materials | Entered Mines 1355 | -10/Mines | Discovered new exit (range 8) 1428 | -10/Mines | Identified exit to Materials 1956 | -10/Mines | Learned Materials stockpile data 1970 | -10/Mines | Received a Rocket Launcher from a helpful Derelict 2038 | -10/Mines | Learned location of Zion (-6) 2106 | -10/Mines | Excavation squad dispatched 2106 | -10/Mines | A large section of the Mines collapsed 2403 | -10/Mines | Found a damaged Exp. Sensor Array with a note attached 2427 | -10/Mines | Found Prototype Device 2837 | -10/Mines | Core integrity fell below 50% 2905 | -10/Mines | Discovered new exit (range 5) 2915 | -10/Mines | Entered Subcaves 2919 | -10/Subcaves | Shifting Twisted Machinery released Sub. Shrapnel Launcher 2923 | -10/Subcaves | Identified Exp. Sensor Array 2928 | -10/Subcaves | Discovered new exit (range 12) 2993 | -10/Subcaves | Shifting Twisted Machinery released Battle Cannon 3499 | -10/Subcaves | Core integrity fell below 20% 3546 | -10/Subcaves | Visited 4L-MR0's lab 3567 | -10/Subcaves | Found Powered Cannon 3569 | -10/Subcaves | Attached Powered Cannon, gained temporary slot: Power 3752 | -10/Subcaves | Entered Materials 3752 | -8/Materials | Evolved 4 slots: Propulsion x2, Utility x2 3753 | -8/Materials | Identified exit to Storage 4078 | -8/Materials | Build established: Scavenger-Mutant 4173 | -8/Materials | Discovered exit to Storage (range 15) 4502 | -8/Materials | Discovered new exit (range 16) 4775 | -8/Materials | Discovered new exit (range 14) 5019 | -8/Materials | Entered Storage 5034 | -8/Storage | Met 01-MTF 5432 | -8/Storage | Repaired Lyr. Light Armor Plating 5638 | -8/Storage | Learned location of Armory (-4) 5724 | -8/Storage | Assisted by bots powering up and referring to "LRC-V3" 5724 | -8/Storage | Identified exit to Recycling 5882 | -8/Storage | Discovered new exit (range 12) 5998 | -8/Storage | Build established: Commander-Mutant 6034 | -8/Storage | Lost 4 allies 6239 | -8/Storage | Lost 3 allies 6266 | -8/Storage | Repaired Lgt. Treads 6284 | -8/Storage | Used back door to open Recycling access 6299 | -8/Storage | Build established: Scavenger-Mutant 6313 | -8/Storage | Entered Recycling 6313 | -8/Recycling | Accompanied by 1 ally 6314 | -8/Recycling | Met a Zionite searching for Scraptown 7048 | -8/Recycling | Build established: Mutant 7110 | -8/Recycling | Discovered new exit (range 15) 7229 | -8/Recycling | Identified exit to Factory 8384 | -8/Recycling | Build established: Commander-Mutant 9301 | -8/Recycling | Entered Factory 9301 | -6/Factory | Accompanied by 18 allies 9301 | -6/Factory | Evolved 4 slots: Utility x4 9600 | -6/Factory | Lost 5 allies 9691 | -6/Factory | Identified exit to Lower Caves 9914 | -6/Factory | Discovered new exit (range 12) 10005 | -6/Factory | Discovered new exit (range 15) 10200 | -6/Factory | Entered Lower Caves 10200 | -6/Lower Caves | Accompanied by 3 allies 10270 | -6/Lower Caves | A Derelict revealed a hidden shortcut to a safe place 10286 | -6/Lower Caves | Entered Zion 10286 | -6/Zion | Accompanied by 3 allies 10498 | -6/Zion | Build established: Mutant 10696 | -6/Zion | Learned 4 Factory zone layouts 10737 | -6/Zion | Visited the Megawrench Repair Shop 10744 | -6/Zion | Megawrench repaired 12 parts 11103 | -6/Zion | Learned location of Warlord (-5) 11237 | -6/Zion | Found Prototype Launcher 11237 | -6/Zion | Identified Rocket Array 11242 | -6/Zion | Found Rocket Array 11271 | -6/Zion | Found Rocket Array 11756 | -6/Zion | Given the Hacking Drone Bay 11756 | -6/Zion | Found Prototype Device 12183 | -6/Zion | Discovered new exit (range 3) 12183 | -6/Zion | Saw the warning signs outside the Deep Caves entrance 12201 | -6/Zion | Entered Deep Caves 12201 | -6/Deep Caves | Accompanied by 3 allies 12476 | -6/Deep Caves | Attacked by Z-Imprinter 12493 | -6/Deep Caves | Destroyed Z-Imprinter 12552 | -6/Deep Caves | Found Prototype Protection 12552 | -6/Deep Caves | Identified Zio. Weapon Casing 12703 | -6/Deep Caves | Found Prototype Protection 12703 | -6/Deep Caves | Identified Zio. Heavy Carapace 12737 | -6/Deep Caves | Identified Hacking Drone Bay 12741 | -6/Deep Caves | Found Zio. Weapon Casing 12835 | -6/Deep Caves | Found Zio. Weapon Casing 12844 | -6/Deep Caves | Found Zio. Weapon Casing 13319 | -6/Deep Caves | Discovered new exit (range 7) 13575 | -6/Deep Caves | Entered Proximity Caves 13575 | -5/Proximity Caves | Accompanied by 1 ally 13721 | -5/Proximity Caves | Learned Factory emergency access door positions 14150 | -5/Proximity Caves | Discovered new exit (range 14) 14166 | -5/Proximity Caves | Attracted the attention of an 0b10 checkpoint 14182 | -5/Proximity Caves | Entered Factory 14182 | -5/Factory | Evolved 2 slots: Propulsion x2 14183 | -5/Factory | Identified exit to Upper Caves 14281 | -5/Factory | Identified exit to Extension 14755 | -5/Factory | Entered Extension 15106 | -5/Extension | Build established: Scavenger-Mutant 15114 | -5/Extension | Rescued A7 15165 | -5/Extension | Rescued a captive Derelict 15166 | -5/Extension | Rescued a captive Derelict 15353 | -5/Extension | Rescued a captive Derelict 15354 | -5/Extension | Rescued a captive Derelict 15390 | -5/Extension | Rescued a captive Derelict 15448 | -5/Extension | Spotted B-75 Beast 15513 | -5/Extension | Spotted B-75 Beast 15515 | -5/Extension | Allies destroyed B-75 Beast 15522 | -5/Extension | Allies destroyed B-75 Beast 15538 | -5/Extension | Identified exit to Factory 15855 | -5/Extension | Rescued a captive Derelict 15855 | -5/Extension | Rescued a captive Derelict 15882 | -5/Extension | Rescued a captive Derelict 16051 | -5/Extension | Lost 3 allies 16066 | -5/Extension | Rescued a captive Derelict 16066 | -5/Extension | Rescued a captive Derelict 16196 | -5/Extension | Discovered exit to Factory (range 10) 16198 | -5/Extension | Discovered new exit (range 6) 16283 | -5/Extension | Entered Cetus 16283 | -5/Cetus | Accompanied by 11 allies (A7) 16288 | -5/Cetus | Acquired a Cetus Manufacturing Module code from A7 16304 | -5/Cetus | Spotted Cetus Guard 16304 | -5/Cetus | Spotted Cetus Guard 16307 | -5/Cetus | Spotted Cetus Guard 16309 | -5/Cetus | Spotted Cetus Guard 16318 | -5/Cetus | Allies destroyed Cetus Guard 16324 | -5/Cetus | Allies destroyed Cetus Guard 16325 | -5/Cetus | Allies destroyed Cetus Guard 16326 | -5/Cetus | Destroyed Cetus Guard 16351 | -5/Cetus | Lost 5 allies 16361 | -5/Cetus | System corruption reached 10% 16515 | -5/Cetus | Escorted A7 to Cetus Mainframe 16575 | -5/Cetus | Started Cetus Manufacturing Module 16600 | -5/Cetus | Manufactured an Enhanced Grunt 16625 | -5/Cetus | Manufactured an Enhanced Grunt 16632 | -5/Cetus | Discovered new exit (range 16) 16650 | -5/Cetus | Manufactured an Enhanced Grunt 16659 | -5/Cetus | Spotted Cetus Guard 16660 | -5/Cetus | Spotted Cetus Guard 16663 | -5/Cetus | Spotted Cetus Guard 16665 | -5/Cetus | Spotted Cetus Guard 16671 | -5/Cetus | Allies destroyed Cetus Guard 16675 | -5/Cetus | Manufactured an Enhanced Grunt 16677 | -5/Cetus | Allies destroyed Cetus Guard 16679 | -5/Cetus | Allies destroyed Cetus Guard 16680 | -5/Cetus | Destroyed Cetus Guard 16700 | -5/Cetus | Manufactured an Enhanced Grunt 16702 | -5/Cetus | Met Revision 17 16708 | -5/Cetus | Lost 4 allies 16822 | -5/Cetus | Entered Archives 16822 | -5/Archives | Accompanied by 7 allies (A7) 16827 | -5/Archives | Received a hacking code to weaken MAIN.C 16894 | -5/Archives | Discovered new exit (range 13) 16919 | -5/Archives | Identified exit to Hub_04(d) 17418 | -5/Archives | Entered Hub_04(d) 17418 | -5/Hub_04(d) | Accompanied by 4 allies 17518 | -5/Hub_04(d) | Discovered exit to Factory (range 12) 17820 | -5/Hub_04(d) | Garrison activated, responded to threat 17979 | -5/Hub_04(d) | Garrison activated, responded to threat 18052 | -5/Hub_04(d) | Network Hub disabled 18064 | -5/Hub_04(d) | Entered Factory 18064 | -4/Factory | Evolved 2 slots: Power x1, Utility x1 18103 | -4/Factory | Identified exit to DSF 18955 | -4/Factory | Found Quantum Capacitor 19314 | -4/Factory | First assault squad dispatched 19448 | -4/Factory | Lost 4 parts (1p1n2u) 19513 | -4/Factory | Lost 4 parts (1n1u2w) 19631 | -4/Factory | Discovered new exit (range 9) 19706 | -4/Factory | System corruption reached 10% 19708 | -4/Factory | Entered Research 19708 | -3/Research | Evolved 2 slots: Utility x2 19908 | -3/Research | Revision forces began assault on 0b10 19964 | -3/Research | Met up with Revision 17++ 20147 | -3/Research | Lost 4 allies 20189 | -3/Research | Found Prototype Device 20189 | -3/Research | Identified Exp. Thermal Shield 20265 | -3/Research | Lost 4 allies 20278 | -3/Research | Lost 3 parts (1n2u) 20284 | -3/Research | Destroyed 8 combat bots 20391 | -3/Research | Released all parts (11) 20403 | -3/Research | Destroyed 8 combat bots 20408 | -3/Research | Research terminal network offline 20413 | -3/Research | Lost 6 parts (1p2n3u) 20434 | -3/Research | Found Prototype Device 20434 | -3/Research | Identified Exp. Shield Generator 20443 | -3/Research | Found Exp. Shield Generator 21206 | -3/Research | Spotted Striker 21286 | -3/Research | Lost 5 allies 21319 | -3/Research | Spotted B-86 Titan 21371 | -3/Research | Spotted Striker 21396 | -3/Research | Destroyed Striker 21495 | -3/Research | Discovered new exit (range 9) 21755 | -3/Research | Identified exit to Research 21929 | -3/Research | Spotted Striker 21943 | -3/Research | Spotted Striker 21948 | -3/Research | Entered another Research area 21948 | -2/Research | Evolved 2 slots: Utility x1, Weapon x1 22137 | -2/Research | Identified exit to Quarantine 22239 | -2/Research | Spotted B-90 Cyclops 22240 | -2/Research | Build established: Scavenger-Tank 22257 | -2/Research | Destroyed B-90 Cyclops 22284 | -2/Research | Lost 3 parts (3u) 22667 | -2/Research | Identified exit to Access 22738 | -2/Research | Spotted B-90 Cyclops 22757 | -2/Research | Destroyed B-90 Cyclops 22809 | -2/Research | Spotted B-90 Cyclops 22814 | -2/Research | Destroyed B-90 Cyclops 22984 | -2/Research | Entered Quarantine 23150 | -2/Quarantine | Build established: Scavenger-Gunner 23721 | -2/Quarantine | Found Alien Artifact 23721 | -2/Quarantine | Identified Phase Redirector 23763 | -2/Quarantine | Found Alien Artifact 23763 | -2/Quarantine | Identified Core Reset Matrix 23763 | -2/Quarantine | Used Core Reset Matrix 23767 | -2/Quarantine | Detected hypermatrix surge 23767 | -2/Quarantine | Sensed 6 artifacts in vicinity 23898 | -2/Quarantine | Met incapacitated Sigix Warrior 23898 | -2/Quarantine | Lockdown squad dispatched 23912 | -2/Quarantine | Acquired the access code to the Sigix quarantine chamber 23917 | -2/Quarantine | Unlocked Sigix quarantine chamber 24005 | -2/Quarantine | Found Unknown Protection 24005 | -2/Quarantine | Identified Hvy. Insulated Plating 24054 | -2/Quarantine | Spotted Lightning 24057 | -2/Quarantine | Spotted Lightning 24070 | -2/Quarantine | Destroyed Lightning 24076 | -2/Quarantine | Spotted Lightning 24078 | -2/Quarantine | Destroyed Lightning 24089 | -2/Quarantine | System corruption reached 10% 24117 | -2/Quarantine | Build established: Scavenger-Tank 24146 | -2/Quarantine | Found Prototype Energy Cannon 24146 | -2/Quarantine | Identified EMDS 24308 | -2/Quarantine | Found Phase Armor 24531 | -2/Quarantine | First assault squad dispatched 24539 | -2/Quarantine | Core integrity fell below 50% 24691 | -2/Quarantine | Core integrity fell below 20% 24867 | -2/Quarantine | Discovered exit to Access (range 9) 24939 | -2/Quarantine | Entered Access 24939 | -1/Access | Evolved 2 slots: Power x1, Utility x1 25540 | -1/Access | System corruption reached 10% 25697 | -1/Access | Core integrity fell below 50% 25715 | -1/Access | First assault squad dispatched 25731 | -1/Access | Lost 8 parts (1p1n5u1w) 25854 | -1/Access | Destroyed 14 combat bots 25855 | -1/Access | Lost 10 parts (1p2n5u2w) 25926 | -1/Access | Emitted hypermatrix ping 25931 | -1/Access | Assembled emerged from beneath the floor 26017 | -1/Access | Found Unknown Device 26017 | -1/Access | Identified Quantum Capacitor 26050 | -1/Access | Lost 5 allies 26089 | -1/Access | Lost 3 parts (1n2u) 26192 | -1/Access | Assembled emerged from beneath the floor 26276 | -1/Access | System corruption reached 30% 26286 | -1/Access | Lost 6 allies 26312 | -1/Access | Lost 9 parts (1p2n4u2w) 26494 | -1/Access | Lost 3 parts (1p1u1w) 26532 | -1/Access | Core integrity fell below 20% 26538 | -1/Access | Assembled emerged from beneath the floor 26576 | -1/Access | Garrison activated, responded to threat 26580 | -1/Access | Released all parts (13) 26596 | -1/Access | Assembled emerged from beneath the floor 26606 | -1/Access | Lost 6 parts (1p1n2u2w) 26613 | -1/Access | Lost 8 allies 26686 | -1/Access | Lost 7 allies 26699 | -1/Access | Assembled emerged from beneath the floor 26712 | -1/Access | Assembled emerged from beneath the floor 26730 | -1/Access | Assembled emerged from beneath the floor 26747 | -1/Access | Assembled emerged from beneath the floor 26788 | -1/Access | Found Prototype Hackware 26788 | -1/Access | Identified Exp. Hacking Suite 26799 | -1/Access | Assembled emerged from beneath the floor 26804 | -1/Access | Garrison activated, responded to threat 26849 | -1/Access | Destroyed by Y-72 Warden with Quantum Rifle Last Messages --------------- 26816_ S-43 Plague destroyed. 26816_ T-07 Excavator destroyed. 26816_ S-43 Plague destroyed. 26816_ Xenon Bombardment Thruster destroyed. 26819_ Imp. System Restoration Module purges 1% system corruption (29%). 26819_ S-43 Plague destroyed. 26822_ Dropped Hrd. Heavy Armor Plating. 26823_ RS#I8SLWVJQKWQ,SKGAL 26823_ Dropped Lgt. Quantum Reactor. 26826_ Acquired Unknown Reactor. 26826_ Identified Lgt. Antimatter Reactor. 26827_ The unstable cave ceiling collapses. 26828_ Dropped Lgt. Antimatter Reactor. 26830_ Acquired Xenon Bombardment Thruster. 26833_ Acquired Lgt. Antimatter Reactor. 26835_ Imp. System Restoration Module purges 1% system corruption (28%). 26835_ Dropped Imp. Power Shielding. 26846_ R-10 Processor collects Unknown Ballistic Gun. 26847_ Imp. System Restoration Module purges 1% system corruption (27%). [Achievement: Overachiever] Map ----- +----------------------------------------------------+ | #??????????# #????????????????????????? | | +??????????# #????????????????????????? | | #??????????# #????????????????????????? | | #??????????# #????????????????????????? | | ###### ##??????????# #????????????????????????? | | #??### #???????????# #????????????????????????? | | #? # / ??????????# #????????????????????????? | | #? # # ????????# #????????????????????????? | | # # # ???????# #????????????????????????? | | # # #? ??????# #????????????????????????? | | + # #??"""??????# #????????????????????????? | | # # #???????????# #????????????????????????? | | # #???????????????# #????????????????????????? | | #?####?????#########?# #????????????????????????? | | #??????????# ] ### ###??????????????????????? | | #??????????# ! # #??????????????????????? | | #??????????# * ####???????????????????? | | #??????????# +???????????????????? | | #??????????# = ###???????????????????? | | #??????????# # #????????????????????? | | #??????????# = Y #????????????????????? | | +##?????????#### # R ##########????????????? | | #??????? # #????????????? | | #??? ### ! #????????????? | | #??? #?# t # ! +????????????? | | #??? !/ #?# @ #????????????? | | #???? !/ #?# # #????????????? | | #???? = #?# ############????????????? | | ###???? ! #?# #? #?????????????? | | ??????? #?# #? ! #?????????????? | | ??????? ??# # == #?????????????? | | ????????############## #^ == ! #?????????????? | | ????????????# + + == #?????????????? | | ????????????# # # #?????????????? | | ????????????# !!! # # #?????????????? | | ????????????# !!! ?# #? ] #?????????????? | | ????????????# !!! ?# #?#########?????????????? | | ????????????# # #???????????????????????? | | ????????????# # #???????????????????????? | | ????????????# + #???????????????????????? | | ????????????# ##+####?????????????????????? | | ????????????########## #?????????????????????? | | ?????????????????????# #?????????????????????? | | ?????????????????????# #?????????????????????? | | ?????????????????????# #?????????????????????? | | ?????????????????????#######?????????????????????? | | ?????????????????????????????????????????????????? | | ?????????????????????????????????????????????????? | | ?????????????????????????????????????????????????? | | ?????????????????????????????????????????????????? | +----------------------------------------------------+ Best States ------------- Heat Dissipation 126 Coolant Potential 100 Energy Generation 80 Energy Capacity 1190 Matter Stores 400 Matter Capacity 400 Sight Range 16 Terrain Scan Range 16 Terrain Scan Density 10 Jamming Range 14 Power Amplification 30 Base Temperature (-) 100 EM Shielding 3 Armor Coverage 2100 Resistance: KI 25 Resistance: TH 30 Resistance: EX 50 Resistance: EM 30 Power Shielding 66 Weapon Shielding 100 Point Defense Rating 240 Weapon Cycling 25 Evasion (%) 63 Targeting Accuracy 16 Target Analysis 6 Core Analysis 6 Recoil Reduction 6 Matter Filtering 50 Energy Filtering 30 Kinecelleration 40 Offensive Hacking 16 Defensive Hacking 14 Item Schematics ----------------- None Robot Schematics ------------------ None Fabricated ------------ Nothing Alien Tech Used ----------------- Phase Redirector Core Reset Matrix Phase Armor Achievements -------------- Alien Roots Beloved No Explosion For You Overachiever Revolutionary Research \\IAMDERELICT Challenges ------------ None Game ------ Seed MakeshiftHellfireJammer Manual? 0 Play Time 05:07:12 Cumulative 75.5 hours Start 2024.08.08 @ 03:24:43 End 2024.08.08 @ 08:40:03 Sessions 2 Manual Loads 0 Difficulty Rogue Special Mode None Game No. 37 Rogue 37 Adventurer 0 Explorer 0 Win Type - Total 3 Types 1/0/0/2/0/0/0/0/0 Lore% 34 Gallery% 59 Achievement% 51 Wizard Run 0 Options --------- Layout 0 ASCII 0 Keyboard 0 Movement Numpad Keybinds 0 Fullscreen 1 Font 18/X11 Map View 76x50 Zoom Use 0% Tactical HUD 1 Map Filters NONE Filters NONE Steam 1 RUN: 6a9944e2-5845-4cb0-85da-780d557f0b2c